Workbook

Sheet OPERAÇÕES
L9: Matricial
B10: Registro | C10: Data | D10: Coluna1 | E10: Corretora | F10: Coluna2 | G10: Ativo | H10: Posição (C / V) | I10: Qtde | J10: Vlr Unit | K10: Vlr Operação | L10: Qtde Posição Aberta | M10: Resultado desejado | N10: Preço Médio
B11: 16 | C11: 2021-03-26 | E11: Genial Investimentos | G11: GOAU4 | H11: Compra | I11: 50 | J11: 12.7 | K11: =TB_Operacoes[[#This Row],[Qtde]]*TB_Operacoes[[#This Row],[Vlr Unit]] -> 635 | L11: =IF(AND(SUM(SUMIFS(TB_Operacoes[Qtde],TB_Operacoes[Ativo],TB_Operacoes[[#This Row],[Ativo]],TB_Operacoes[Posição (C / V)],"Compra",TB_Operacoes[Corretora],TB_Operacoes[[#This Row],[Corretora]])-SUMIFS(TB_Operacoes[Qtde],TB_Operacoes[Ativo],TB_Operacoes[[#This Row],[Ativo]],TB_Operacoes[Posição (C / V)],"Venda",TB_Operacoes[Corretora],TB_Operacoes[[#This Row],[Corretora]]))<>0,MAX(TB_Operacoes[Registro]*(TB_Operacoes[Corretora]=TB_Operacoes[[#This Row],[Corretora]])*(TB_Operacoes[Ativo]=TB_Operacoes[[#This Row],[Ativo]]))),SUM(SUMIFS(TB_Operacoes[Qtde],TB_Operacoes[Ativo],TB_Operacoes[[#This Row],[Ativo]],TB_Operacoes[Posição (C / V)],"Compra",TB_Operacoes[Corretora],TB_Operacoes[[#This Row],[Corretora]])-SUMIFS(TB_Operacoes[Qtde],TB_Operacoes[Ativo],TB_Operacoes[[#This Row],[Ativo]],TB_Operacoes[Posição (C / V)],"Venda",TB_Operacoes[Corretora],TB_Operacoes[[#This Row],[Corretora]])),"-") -> -50 | M11: -50 | N11: =IF(TB_Operacoes[[#This Row],[Resultado desejado]]<>"-","Preço Médio " & TB_Operacoes[[#This Row],[Ativo]],0) -> Preço Médio GOAU4
B12: 15 | C12: 2021-03-26 | E12: Genial Investimentos | G12: SAPR4 | H12: Compra | I12: 500 | J12: 4.46 | K12: =TB_Operacoes[[#This Row],[Qtde]]*TB_Operacoes[[#This Row],[Vlr Unit]] -> 2230 | L12: =IF(AND(SUM(SUMIFS(TB_Operacoes[Qtde],TB_Operacoes[Ativo],TB_Operacoes[[#This Row],[Ativo]],TB_Operacoes[Posição (C / V)],"Compra",TB_Operacoes[Corretora],TB_Operacoes[[#This Row],[Corretora]])-SUMIFS(TB_Operacoes[Qtde],TB_Operacoes[Ativo],TB_Operacoes[[#This Row],[Ativo]],TB_Operacoes[Posição (C / V)],"Venda",TB_Operacoes[Corretora],TB_Operacoes[[#This Row],[Corretora]]))<>0,MAX(TB_Operacoes[Registro]*(TB_Operacoes[Corretora]=TB_Operacoes[[#This Row],[Corretora]])*(TB_Operacoes[Ativo]=TB_Operacoes[[#This Row],[Ativo]]))),SUM(SUMIFS(TB_Operacoes[Qtde],TB_Operacoes[Ativo],TB_Operacoes[[#This Row],[Ativo]],TB_Operacoes[Posição (C / V)],"Compra",TB_Operacoes[Corretora],TB_Operacoes[[#This Row],[Corretora]])-SUMIFS(TB_Operacoes[Qtde],TB_Operacoes[Ativo],TB_Operacoes[[#This Row],[Ativo]],TB_Operacoes[Posição (C / V)],"Venda",TB_Operacoes[Corretora],TB_Operacoes[[#This Row],[Corretora]])),"-") -> 500 | M12: 500 | N12: =IF(TB_Operacoes[[#This Row],[Resultado desejado]]<>"-","Preço Médio " & TB_Operacoes[[#This Row],[Ativo]],0) -> Preço Médio SAPR4
B13: 14 | C13: 2021-03-26 | E13: Genial Investimentos | G13: GOAU4 | H13: Compra | I13: 100 | J13: 12.7 | K13: =TB_Operacoes[[#This Row],[Qtde]]*TB_Operacoes[[#This Row],[Vlr Unit]] -> 1270 | L13: =IF(AND(SUM(SUMIFS(TB_Operacoes[Qtde],TB_Operacoes[Ativo],TB_Operacoes[[#This Row],[Ativo]],TB_Operacoes[Posição (C / V)],"Compra",TB_Operacoes[Corretora],TB_Operacoes[[#This Row],[Corretora]])-SUMIFS(TB_Operacoes[Qtde],TB_Operacoes[Ativo],TB_Operacoes[[#This Row],[Ativo]],TB_Operacoes[Posição (C / V)],"Venda",TB_Operacoes[Corretora],TB_Operacoes[[#This Row],[Corretora]]))<>0,MAX(TB_Operacoes[Registro]*(TB_Operacoes[Corretora]=TB_Operacoes[[#This Row],[Corretora]])*(TB_Operacoes[Ativo]=TB_Operacoes[[#This Row],[Ativo]]))),SUM(SUMIFS(TB_Operacoes[Qtde],TB_Operacoes[Ativo],TB_Operacoes[[#This Row],[Ativo]],TB_Operacoes[Posição (C / V)],"Compra",TB_Operacoes[Corretora],TB_Operacoes[[#This Row],[Corretora]])-SUMIFS(TB_Operacoes[Qtde],TB_Operacoes[Ativo],TB_Operacoes[[#This Row],[Ativo]],TB_Operacoes[Posição (C / V)],"Venda",TB_Operacoes[Corretora],TB_Operacoes[[#This Row],[Corretora]])),"-") -> -50 | M13: -50 | N13: =IF(TB_Operacoes[[#This Row],[Resultado desejado]]<>"-","Preço Médio " & TB_Operacoes[[#This Row],[Ativo]],0) -> Preço Médio GOAU4
B14: 13 | C14: 2021-03-24 | E14: Genial Investimentos | G14: ETER3 | H14: Compra | I14: 100 | J14: 18.95 | K14: =TB_Operacoes[[#This Row],[Qtde]]*TB_Operacoes[[#This Row],[Vlr Unit]] -> 1895 | L14: =IF(AND(SUM(SUMIFS(TB_Operacoes[Qtde],TB_Operacoes[Ativo],TB_Operacoes[[#This Row],[Ativo]],TB_Operacoes[Posição (C / V)],"Compra",TB_Operacoes[Corretora],TB_Operacoes[[#This Row],[Corretora]])-SUMIFS(TB_Operacoes[Qtde],TB_Operacoes[Ativo],TB_Operacoes[[#This Row],[Ativo]],TB_Operacoes[Posição (C / V)],"Venda",TB_Operacoes[Corretora],TB_Operacoes[[#This Row],[Corretora]]))<>0,MAX(TB_Operacoes[Registro]*(TB_Operacoes[Corretora]=TB_Operacoes[[#This Row],[Corretora]])*(TB_Operacoes[Ativo]=TB_Operacoes[[#This Row],[Ativo]]))),SUM(SUMIFS(TB_Operacoes[Qtde],TB_Operacoes[Ativo],TB_Operacoes[[#This Row],[Ativo]],TB_Operacoes[Posição (C / V)],"Compra",TB_Operacoes[Corretora],TB_Operacoes[[#This Row],[Corretora]])-SUMIFS(TB_Operacoes[Qtde],TB_Operacoes[Ativo],TB_Operacoes[[#This Row],[Ativo]],TB_Operacoes[Posição (C / V)],"Venda",TB_Operacoes[Corretora],TB_Operacoes[[#This Row],[Corretora]])),"-") -> 100 | M14: 100 | N14: =IF(TB_Operacoes[[#This Row],[Resultado desejado]]<>"-","Preço Médio " & TB_Operacoes[[#This Row],[Ativo]],0) -> Preço Médio ETER3
B15: 12 | C15: 2021-03-22 | E15: Genial Investimentos | G15: GOAU4 | H15: Venda | I15: 200 | J15: 12.31 | K15: =TB_Operacoes[[#This Row],[Qtde]]*TB_Operacoes[[#This Row],[Vlr Unit]] -> 2462 | L15: =IF(AND(SUM(SUMIFS(TB_Operacoes[Qtde],TB_Operacoes[Ativo],TB_Operacoes[[#This Row],[Ativo]],TB_Operacoes[Posição (C / V)],"Compra",TB_Operacoes[Corretora],TB_Operacoes[[#This Row],[Corretora]])-SUMIFS(TB_Operacoes[Qtde],TB_Operacoes[Ativo],TB_Operacoes[[#This Row],[Ativo]],TB_Operacoes[Posição (C / V)],"Venda",TB_Operacoes[Corretora],TB_Operacoes[[#This Row],[Corretora]]))<>0,MAX(TB_Operacoes[Registro]*(TB_Operacoes[Corretora]=TB_Operacoes[[#This Row],[Corretora]])*(TB_Operacoes[Ativo]=TB_Operacoes[[#This Row],[Ativo]]))),SUM(SUMIFS(TB_Operacoes[Qtde],TB_Operacoes[Ativo],TB_Operacoes[[#This Row],[Ativo]],TB_Operacoes[Posição (C / V)],"Compra",TB_Operacoes[Corretora],TB_Operacoes[[#This Row],[Corretora]])-SUMIFS(TB_Operacoes[Qtde],TB_Operacoes[Ativo],TB_Operacoes[[#This Row],[Ativo]],TB_Operacoes[Posição (C / V)],"Venda",TB_Operacoes[Corretora],TB_Operacoes[[#This Row],[Corretora]])),"-") -> -50 | M15: -50 | N15: =IF(TB_Operacoes[[#This Row],[Resultado desejado]]<>"-","Preço Médio " & TB_Operacoes[[#This Row],[Ativo]],0) -> Preço Médio GOAU4
B16: 11 | C16: 2021-03-18 | E16: Modal Mais | G16: ITSA4 | H16: Venda | I16: 200 | J16: 10.42 | K16: =TB_Operacoes[[#This Row],[Qtde]]*TB_Operacoes[[#This Row],[Vlr Unit]] -> 2084 | L16: =IF(AND(SUM(SUMIFS(TB_Operacoes[Qtde],TB_Operacoes[Ativo],TB_Operacoes[[#This Row],[Ativo]],TB_Operacoes[Posição (C / V)],"Compra",TB_Operacoes[Corretora],TB_Operacoes[[#This Row],[Corretora]])-SUMIFS(TB_Operacoes[Qtde],TB_Operacoes[Ativo],TB_Operacoes[[#This Row],[Ativo]],TB_Operacoes[Posição (C / V)],"Venda",TB_Operacoes[Corretora],TB_Operacoes[[#This Row],[Corretora]]))<>0,MAX(TB_Operacoes[Registro]*(TB_Operacoes[Corretora]=TB_Operacoes[[#This Row],[Corretora]])*(TB_Operacoes[Ativo]=TB_Operacoes[[#This Row],[Ativo]]))),SUM(SUMIFS(TB_Operacoes[Qtde],TB_Operacoes[Ativo],TB_Operacoes[[#This Row],[Ativo]],TB_Operacoes[Posição (C / V)],"Compra",TB_Operacoes[Corretora],TB_Operacoes[[#This Row],[Corretora]])-SUMIFS(TB_Operacoes[Qtde],TB_Operacoes[Ativo],TB_Operacoes[[#This Row],[Ativo]],TB_Operacoes[Posição (C / V)],"Venda",TB_Operacoes[Corretora],TB_Operacoes[[#This Row],[Corretora]])),"-") -> - | M16: - | N16: =IF(TB_Operacoes[[#This Row],[Resultado desejado]]<>"-","Preço Médio " & TB_Operacoes[[#This Row],[Ativo]],0) -> 0
B17: 10 | C17: 2021-03-18 | E17: Genial Investimentos | G17: ECOR3 | H17: Venda | I17: 100 | J17: 11.58 | K17: =TB_Operacoes[[#This Row],[Qtde]]*TB_Operacoes[[#This Row],[Vlr Unit]] -> 1158 | L17: =IF(AND(SUM(SUMIFS(TB_Operacoes[Qtde],TB_Operacoes[Ativo],TB_Operacoes[[#This Row],[Ativo]],TB_Operacoes[Posição (C / V)],"Compra",TB_Operacoes[Corretora],TB_Operacoes[[#This Row],[Corretora]])-SUMIFS(TB_Operacoes[Qtde],TB_Operacoes[Ativo],TB_Operacoes[[#This Row],[Ativo]],TB_Operacoes[Posição (C / V)],"Venda",TB_Operacoes[Corretora],TB_Operacoes[[#This Row],[Corretora]]))<>0,MAX(TB_Operacoes[Registro]*(TB_Operacoes[Corretora]=TB_Operacoes[[#This Row],[Corretora]])*(TB_Operacoes[Ativo]=TB_Operacoes[[#This Row],[Ativo]]))),SUM(SUMIFS(TB_Operacoes[Qtde],TB_Operacoes[Ativo],TB_Operacoes[[#This Row],[Ativo]],TB_Operacoes[Posição (C / V)],"Compra",TB_Operacoes[Corretora],TB_Operacoes[[#This Row],[Corretora]])-SUMIFS(TB_Operacoes[Qtde],TB_Operacoes[Ativo],TB_Operacoes[[#This Row],[Ativo]],TB_Operacoes[Posição (C / V)],"Venda",TB_Operacoes[Corretora],TB_Operacoes[[#This Row],[Corretora]])),"-") -> - | M17: - | N17: =IF(TB_Operacoes[[#This Row],[Resultado desejado]]<>"-","Preço Médio " & TB_Operacoes[[#This Row],[Ativo]],0) -> 0
B18: 9 | C18: 2021-03-17 | E18: Genial Investimentos | G18: ENEV3 | H18: Compra | I18: 100 | J18: 16.62 | K18: =TB_Operacoes[[#This Row],[Qtde]]*TB_Operacoes[[#This Row],[Vlr Unit]] -> 1662 | L18: =IF(AND(SUM(SUMIFS(TB_Operacoes[Qtde],TB_Operacoes[Ativo],TB_Operacoes[[#This Row],[Ativo]],TB_Operacoes[Posição (C / V)],"Compra",TB_Operacoes[Corretora],TB_Operacoes[[#This Row],[Corretora]])-SUMIFS(TB_Operacoes[Qtde],TB_Operacoes[Ativo],TB_Operacoes[[#This Row],[Ativo]],TB_Operacoes[Posição (C / V)],"Venda",TB_Operacoes[Corretora],TB_Operacoes[[#This Row],[Corretora]]))<>0,MAX(TB_Operacoes[Registro]*(TB_Operacoes[Corretora]=TB_Operacoes[[#This Row],[Corretora]])*(TB_Operacoes[Ativo]=TB_Operacoes[[#This Row],[Ativo]]))),SUM(SUMIFS(TB_Operacoes[Qtde],TB_Operacoes[Ativo],TB_Operacoes[[#This Row],[Ativo]],TB_Operacoes[Posição (C / V)],"Compra",TB_Operacoes[Corretora],TB_Operacoes[[#This Row],[Corretora]])-SUMIFS(TB_Operacoes[Qtde],TB_Operacoes[Ativo],TB_Operacoes[[#This Row],[Ativo]],TB_Operacoes[Posição (C / V)],"Venda",TB_Operacoes[Corretora],TB_Operacoes[[#This Row],[Corretora]])),"-") -> 100 | M18: 100 | N18: =IF(TB_Operacoes[[#This Row],[Resultado desejado]]<>"-","Preço Médio " & TB_Operacoes[[#This Row],[Ativo]],0) -> Preço Médio ENEV3
B19: 8 | C19: 2021-03-16 | E19: Genial Investimentos | G19: ECOR3 | H19: Compra | I19: 100 | J19: 11.37 | K19: =TB_Operacoes[[#This Row],[Qtde]]*TB_Operacoes[[#This Row],[Vlr Unit]] -> 1137 | L19: =IF(AND(SUM(SUMIFS(TB_Operacoes[Qtde],TB_Operacoes[Ativo],TB_Operacoes[[#This Row],[Ativo]],TB_Operacoes[Posição (C / V)],"Compra",TB_Operacoes[Corretora],TB_Operacoes[[#This Row],[Corretora]])-SUMIFS(TB_Operacoes[Qtde],TB_Operacoes[Ativo],TB_Operacoes[[#This Row],[Ativo]],TB_Operacoes[Posição (C / V)],"Venda",TB_Operacoes[Corretora],TB_Operacoes[[#This Row],[Corretora]]))<>0,MAX(TB_Operacoes[Registro]*(TB_Operacoes[Corretora]=TB_Operacoes[[#This Row],[Corretora]])*(TB_Operacoes[Ativo]=TB_Operacoes[[#This Row],[Ativo]]))),SUM(SUMIFS(TB_Operacoes[Qtde],TB_Operacoes[Ativo],TB_Operacoes[[#This Row],[Ativo]],TB_Operacoes[Posição (C / V)],"Compra",TB_Operacoes[Corretora],TB_Operacoes[[#This Row],[Corretora]])-SUMIFS(TB_Operacoes[Qtde],TB_Operacoes[Ativo],TB_Operacoes[[#This Row],[Ativo]],TB_Operacoes[Posição (C / V)],"Venda",TB_Operacoes[Corretora],TB_Operacoes[[#This Row],[Corretora]])),"-") -> - | M19: - | N19: =IF(TB_Operacoes[[#This Row],[Resultado desejado]]<>"-","Preço Médio " & TB_Operacoes[[#This Row],[Ativo]],0) -> 0
B20: 7 | C20: 2021-03-15 | E20: Modal Mais | G20: ITSA4 | H20: Compra | I20: 200 | J20: 10.21 | K20: =TB_Operacoes[[#This Row],[Qtde]]*TB_Operacoes[[#This Row],[Vlr Unit]] -> 2042 | L20: =IF(AND(SUM(SUMIFS(TB_Operacoes[Qtde],TB_Operacoes[Ativo],TB_Operacoes[[#This Row],[Ativo]],TB_Operacoes[Posição (C / V)],"Compra",TB_Operacoes[Corretora],TB_Operacoes[[#This Row],[Corretora]])-SUMIFS(TB_Operacoes[Qtde],TB_Operacoes[Ativo],TB_Operacoes[[#This Row],[Ativo]],TB_Operacoes[Posição (C / V)],"Venda",TB_Operacoes[Corretora],TB_Operacoes[[#This Row],[Corretora]]))<>0,MAX(TB_Operacoes[Registro]*(TB_Operacoes[Corretora]=TB_Operacoes[[#This Row],[Corretora]])*(TB_Operacoes[Ativo]=TB_Operacoes[[#This Row],[Ativo]]))),SUM(SUMIFS(TB_Operacoes[Qtde],TB_Operacoes[Ativo],TB_Operacoes[[#This Row],[Ativo]],TB_Operacoes[Posição (C / V)],"Compra",TB_Operacoes[Corretora],TB_Operacoes[[#This Row],[Corretora]])-SUMIFS(TB_Operacoes[Qtde],TB_Operacoes[Ativo],TB_Operacoes[[#This Row],[Ativo]],TB_Operacoes[Posição (C / V)],"Venda",TB_Operacoes[Corretora],TB_Operacoes[[#This Row],[Corretora]])),"-") -> - | M20: - | N20: =IF(TB_Operacoes[[#This Row],[Resultado desejado]]<>"-","Preço Médio " & TB_Operacoes[[#This Row],[Ativo]],0) -> 0
B21: 6 | C21: 2021-03-11 | E21: Genial Investimentos | G21: GOAU4 | H21: Venda | I21: 100 | J21: 12.49 | K21: =TB_Operacoes[[#This Row],[Qtde]]*TB_Operacoes[[#This Row],[Vlr Unit]] -> 1249 | L21: =IF(AND(SUM(SUMIFS(TB_Operacoes[Qtde],TB_Operacoes[Ativo],TB_Operacoes[[#This Row],[Ativo]],TB_Operacoes[Posição (C / V)],"Compra",TB_Operacoes[Corretora],TB_Operacoes[[#This Row],[Corretora]])-SUMIFS(TB_Operacoes[Qtde],TB_Operacoes[Ativo],TB_Operacoes[[#This Row],[Ativo]],TB_Operacoes[Posição (C / V)],"Venda",TB_Operacoes[Corretora],TB_Operacoes[[#This Row],[Corretora]]))<>0,MAX(TB_Operacoes[Registro]*(TB_Operacoes[Corretora]=TB_Operacoes[[#This Row],[Corretora]])*(TB_Operacoes[Ativo]=TB_Operacoes[[#This Row],[Ativo]]))),SUM(SUMIFS(TB_Operacoes[Qtde],TB_Operacoes[Ativo],TB_Operacoes[[#This Row],[Ativo]],TB_Operacoes[Posição (C / V)],"Compra",TB_Operacoes[Corretora],TB_Operacoes[[#This Row],[Corretora]])-SUMIFS(TB_Operacoes[Qtde],TB_Operacoes[Ativo],TB_Operacoes[[#This Row],[Ativo]],TB_Operacoes[Posição (C / V)],"Venda",TB_Operacoes[Corretora],TB_Operacoes[[#This Row],[Corretora]])),"-") -> -50 | M21: - | N21: =IF(TB_Operacoes[[#This Row],[Resultado desejado]]<>"-","Preço Médio " & TB_Operacoes[[#This Row],[Ativo]],0) -> 0
B22: 5 | C22: 2021-03-10 | E22: Modal Mais | G22: ENBR3 | H22: Venda | I22: 100 | J22: 18.57 | K22: =TB_Operacoes[[#This Row],[Qtde]]*TB_Operacoes[[#This Row],[Vlr Unit]] -> 1857 | L22: =IF(AND(SUM(SUMIFS(TB_Operacoes[Qtde],TB_Operacoes[Ativo],TB_Operacoes[[#This Row],[Ativo]],TB_Operacoes[Posição (C / V)],"Compra",TB_Operacoes[Corretora],TB_Operacoes[[#This Row],[Corretora]])-SUMIFS(TB_Operacoes[Qtde],TB_Operacoes[Ativo],TB_Operacoes[[#This Row],[Ativo]],TB_Operacoes[Posição (C / V)],"Venda",TB_Operacoes[Corretora],TB_Operacoes[[#This Row],[Corretora]]))<>0,MAX(TB_Operacoes[Registro]*(TB_Operacoes[Corretora]=TB_Operacoes[[#This Row],[Corretora]])*(TB_Operacoes[Ativo]=TB_Operacoes[[#This Row],[Ativo]]))),SUM(SUMIFS(TB_Operacoes[Qtde],TB_Operacoes[Ativo],TB_Operacoes[[#This Row],[Ativo]],TB_Operacoes[Posição (C / V)],"Compra",TB_Operacoes[Corretora],TB_Operacoes[[#This Row],[Corretora]])-SUMIFS(TB_Operacoes[Qtde],TB_Operacoes[Ativo],TB_Operacoes[[#This Row],[Ativo]],TB_Operacoes[Posição (C / V)],"Venda",TB_Operacoes[Corretora],TB_Operacoes[[#This Row],[Corretora]])),"-") -> -100 | M22: -100 | N22: =IF(TB_Operacoes[[#This Row],[Resultado desejado]]<>"-","Preço Médio " & TB_Operacoes[[#This Row],[Ativo]],0) -> Preço Médio ENBR3
B23: 4 | C23: 2021-03-09 | E23: Genial Investimentos | G23: GOAU4 | H23: Compra | I23: 100 | J23: 11.92 | K23: =TB_Operacoes[[#This Row],[Qtde]]*TB_Operacoes[[#This Row],[Vlr Unit]] -> 1192 | L23: =IF(AND(SUM(SUMIFS(TB_Operacoes[Qtde],TB_Operacoes[Ativo],TB_Operacoes[[#This Row],[Ativo]],TB_Operacoes[Posição (C / V)],"Compra",TB_Operacoes[Corretora],TB_Operacoes[[#This Row],[Corretora]])-SUMIFS(TB_Operacoes[Qtde],TB_Operacoes[Ativo],TB_Operacoes[[#This Row],[Ativo]],TB_Operacoes[Posição (C / V)],"Venda",TB_Operacoes[Corretora],TB_Operacoes[[#This Row],[Corretora]]))<>0,MAX(TB_Operacoes[Registro]*(TB_Operacoes[Corretora]=TB_Operacoes[[#This Row],[Corretora]])*(TB_Operacoes[Ativo]=TB_Operacoes[[#This Row],[Ativo]]))),SUM(SUMIFS(TB_Operacoes[Qtde],TB_Operacoes[Ativo],TB_Operacoes[[#This Row],[Ativo]],TB_Operacoes[Posição (C / V)],"Compra",TB_Operacoes[Corretora],TB_Operacoes[[#This Row],[Corretora]])-SUMIFS(TB_Operacoes[Qtde],TB_Operacoes[Ativo],TB_Operacoes[[#This Row],[Ativo]],TB_Operacoes[Posição (C / V)],"Venda",TB_Operacoes[Corretora],TB_Operacoes[[#This Row],[Corretora]])),"-") -> -50 | M23: - | N23: =IF(TB_Operacoes[[#This Row],[Resultado desejado]]<>"-","Preço Médio " & TB_Operacoes[[#This Row],[Ativo]],0) -> 0
B24: 3 | C24: 2021-03-08 | E24: Genial Investimentos | G24: MRFG3 | H24: Venda | I24: 100 | J24: 15.09 | K24: =TB_Operacoes[[#This Row],[Qtde]]*TB_Operacoes[[#This Row],[Vlr Unit]] -> 1509 | L24: =IF(AND(SUM(SUMIFS(TB_Operacoes[Qtde],TB_Operacoes[Ativo],TB_Operacoes[[#This Row],[Ativo]],TB_Operacoes[Posição (C / V)],"Compra",TB_Operacoes[Corretora],TB_Operacoes[[#This Row],[Corretora]])-SUMIFS(TB_Operacoes[Qtde],TB_Operacoes[Ativo],TB_Operacoes[[#This Row],[Ativo]],TB_Operacoes[Posição (C / V)],"Venda",TB_Operacoes[Corretora],TB_Operacoes[[#This Row],[Corretora]]))<>0,MAX(TB_Operacoes[Registro]*(TB_Operacoes[Corretora]=TB_Operacoes[[#This Row],[Corretora]])*(TB_Operacoes[Ativo]=TB_Operacoes[[#This Row],[Ativo]]))),SUM(SUMIFS(TB_Operacoes[Qtde],TB_Operacoes[Ativo],TB_Operacoes[[#This Row],[Ativo]],TB_Operacoes[Posição (C / V)],"Compra",TB_Operacoes[Corretora],TB_Operacoes[[#This Row],[Corretora]])-SUMIFS(TB_Operacoes[Qtde],TB_Operacoes[Ativo],TB_Operacoes[[#This Row],[Ativo]],TB_Operacoes[Posição (C / V)],"Venda",TB_Operacoes[Corretora],TB_Operacoes[[#This Row],[Corretora]])),"-") -> - | M24: - | N24: =IF(TB_Operacoes[[#This Row],[Resultado desejado]]<>"-","Preço Médio " & TB_Operacoes[[#This Row],[Ativo]],0) -> 0
B25: 2 | C25: 2021-03-04 | E25: Genial Investimentos | G25: MRFG3 | H25: Compra | I25: 100 | J25: 14.67 | K25: =TB_Operacoes[[#This Row],[Qtde]]*TB_Operacoes[[#This Row],[Vlr Unit]] -> 1467 | L25: =IF(AND(SUM(SUMIFS(TB_Operacoes[Qtde],TB_Operacoes[Ativo],TB_Operacoes[[#This Row],[Ativo]],TB_Operacoes[Posição (C / V)],"Compra",TB_Operacoes[Corretora],TB_Operacoes[[#This Row],[Corretora]])-SUMIFS(TB_Operacoes[Qtde],TB_Operacoes[Ativo],TB_Operacoes[[#This Row],[Ativo]],TB_Operacoes[Posição (C / V)],"Venda",TB_Operacoes[Corretora],TB_Operacoes[[#This Row],[Corretora]]))<>0,MAX(TB_Operacoes[Registro]*(TB_Operacoes[Corretora]=TB_Operacoes[[#This Row],[Corretora]])*(TB_Operacoes[Ativo]=TB_Operacoes[[#This Row],[Ativo]]))),SUM(SUMIFS(TB_Operacoes[Qtde],TB_Operacoes[Ativo],TB_Operacoes[[#This Row],[Ativo]],TB_Operacoes[Posição (C / V)],"Compra",TB_Operacoes[Corretora],TB_Operacoes[[#This Row],[Corretora]])-SUMIFS(TB_Operacoes[Qtde],TB_Operacoes[Ativo],TB_Operacoes[[#This Row],[Ativo]],TB_Operacoes[Posição (C / V)],"Venda",TB_Operacoes[Corretora],TB_Operacoes[[#This Row],[Corretora]])),"-") -> - | M25: - | N25: =IF(TB_Operacoes[[#This Row],[Resultado desejado]]<>"-","Preço Médio " & TB_Operacoes[[#This Row],[Ativo]],0) -> 0
B26: 1 | C26: 2021-02-25 | E26: Genial Investimentos | G26: ENBR3 | H26: Compra | I26: 100 | J26: 18.35 | K26: =TB_Operacoes[[#This Row],[Qtde]]*TB_Operacoes[[#This Row],[Vlr Unit]] -> 1835 | L26: =IF(AND(SUM(SUMIFS(TB_Operacoes[Qtde],TB_Operacoes[Ativo],TB_Operacoes[[#This Row],[Ativo]],TB_Operacoes[Posição (C / V)],"Compra",TB_Operacoes[Corretora],TB_Operacoes[[#This Row],[Corretora]])-SUMIFS(TB_Operacoes[Qtde],TB_Operacoes[Ativo],TB_Operacoes[[#This Row],[Ativo]],TB_Operacoes[Posição (C / V)],"Venda",TB_Operacoes[Corretora],TB_Operacoes[[#This Row],[Corretora]]))<>0,MAX(TB_Operacoes[Registro]*(TB_Operacoes[Corretora]=TB_Operacoes[[#This Row],[Corretora]])*(TB_Operacoes[Ativo]=TB_Operacoes[[#This Row],[Ativo]]))),SUM(SUMIFS(TB_Operacoes[Qtde],TB_Operacoes[Ativo],TB_Operacoes[[#This Row],[Ativo]],TB_Operacoes[Posição (C / V)],"Compra",TB_Operacoes[Corretora],TB_Operacoes[[#This Row],[Corretora]])-SUMIFS(TB_Operacoes[Qtde],TB_Operacoes[Ativo],TB_Operacoes[[#This Row],[Ativo]],TB_Operacoes[Posição (C / V)],"Venda",TB_Operacoes[Corretora],TB_Operacoes[[#This Row],[Corretora]])),"-") -> 100 | M26: 100 | N26: =IF(TB_Operacoes[[#This Row],[Resultado desejado]]<>"-","Preço Médio " & TB_Operacoes[[#This Row],[Ativo]],0) -> Preço Médio ENBR3
